fUSD/lending_fUSD_20250826
["ID","MTS","AMOUNT","RATE_DAILY","PERIOD"]
[381431722,1756194650133,-1400.0,0.00028767,2]
[381431723,1756194650143,-500.0,0.00028767,2]
[381431724,1756194650152,-1400.0,0.00028767,2]
[381431725,1756194650162,-500.0,0.00028767,2]
[381431727,1756194650171,-1200.0,0.00028767,2]
[381431728,1756194650180,-1400.0,0.00028767,2]
[381431729,1756194650189,-500.0,0.00028767,2]
[381431730,1756194650199,-500.0,0.00028767,2]
[381431731,1756194650208,-1400.0,0.00028767,2]
[381431733,1756194650217,-500.0,0.00028767,2]
[381431734,1756194650226,-1200.0,0.00028767,2]
[381431735,1756194650235,-1400.0,0.00028767,2]
[381431736,1756194650244,-500.0,0.00028767,2]
[381431738,1756194650253,-500.0,0.00028767,2]
[381431739,1756194650262,-600.0,0.00028767,2]
[381431740,1756194650271,-1400.0,0.00028767,2]
[381431741,1756194650280,-1200.0,0.00028767,2]
[381431742,1756194650289,-500.0,0.00028767,2]
[381431744,1756194650299,-1200.0,0.00028767,2]
[381431745,1756194650309,-1400.0,0.00028767,2]
[381431746,1756194650318,-500.0,0.00028767,2]
[381431747,1756194650327,-500.0,0.00028767,2]
[381431749,1756194650336,-1400.0,0.00028767,2]
[381431750,1756194650345,-600.0,0.00028767,2]
[381431751,1756194650355,-500.0,0.00028767,2]
[381431752,1756194650364,-1200.0,0.00028767,2]
[381431753,1756194650374,-1200.0,0.00028767,2]
[381431755,1756194650383,-1400.0,0.00028767,2]
[381431756,1756194650392,-915.45142675,0.00028767,2]
[381431757,1756194650403,-1400.0,0.00028767,2]
[381431758,1756194650414,-1200.0,0.00028767,2]
[381431760,1756194650424,-500.0,0.00028767,2]
[381431761,1756194650433,-500.0,0.00028767,2]
[381431762,1756194650444,-600.0,0.00028767,2]
[381431763,1756194650453,-1200.0,0.00028767,2]
[381431764,1756194650462,-1400.0,0.00028767,2]
[381431766,1756194650472,-600.0,0.00028767,2]
[381431767,1756194650481,-500.0,0.00028767,2]
[381431768,1756194650490,-500.0,0.00028767,2]
[381431769,1756194650500,-1400.0,0.00028767,2]
[381431771,1756194650510,-1200.0,0.00028767,2]
[381431772,1756194650519,-1400.0,0.00028767,2]
[381431773,1756194650528,-449.0887514,0.00028767,2]
[381431797,1756194651445,-500.0,0.00021999,2]
[381431798,1756194651454,-500.0,0.00021999,2]
[381431799,1756194651464,-150.9112486,0.00028767,2]
[381431800,1756194651473,-1400.0,0.00028767,2]
[381431802,1756194651483,-500.0,0.00028767,2]
[381431803,1756194651492,-1400.0,0.00028767,2]
[381431804,1756194651502,-1200.0,0.00028767,2]
[381431805,1756194651511,-1200.0,0.00028767,2]
[381431807,1756194651521,-600.0,0.00028767,2]
[381431808,1756194651530,-1400.0,0.00028767,2]
[381431809,1756194651539,-500.0,0.00028767,2]
[381431810,1756194651548,-500.0,0.00028767,2]
[381431812,1756194651558,-1200.0,0.00028767,2]
[381431813,1756194651567,-1200.0,0.00028767,2]
[381431814,1756194651578,-600.0,0.00028767,2]
[381431815,1756194651588,-1400.0,0.00028767,2]
[381431817,1756194651597,-500.0,0.00028767,2]
[381431818,1756194651608,-500.0,0.00028767,2]
[381431819,1756194651618,-1200.0,0.00028767,2]
[381431820,1756194651627,-1144.95583024,0.00028767,2]
[381431851,1756194653061,-619.484349,0.00014316,2]
[381431852,1756194653071,-150.0,0.00015511,3]
[381431853,1756194653081,-500.0,0.00021999,2]
[381431854,1756194653091,-500.0,0.00021999,2]
[381431856,1756194653101,-500.0,0.00021999,2]
[381431857,1756194653110,-500.0,0.00021999,2]
[381431858,1756194653119,-500.0,0.00021999,2]
[381431859,1756194653130,-500.0,0.00021999,2]
[381431860,1756194653139,-500.0,0.00021999,2]
[381431862,1756194653148,-500.0,0.00021999,2]
[381431863,1756194653158,-500.0,0.00021999,2]
[381431864,1756194653167,-600.0,0.00021999,2]
[381431865,1756194653176,-255.04416976,0.00028767,2]
[381431867,1756194653185,-600.0,0.00028767,2]
[381431868,1756194653195,-1200.0,0.00028767,2]
[381431869,1756194653204,-974.924341,0.00028767,2]
[381431870,1756194653213,-1400.0,0.00028767,2]
[381431871,1756194653223,-500.0,0.00028767,2]
[381431873,1756194653232,-1200.0,0.00028767,2]
[381431874,1756194653242,-600.0,0.00028767,2]
[381431875,1756194653251,-1400.0,0.00028767,2]
[381431876,1756194653260,-616.81313203,0.00028767,2]
[381431878,1756194653273,-583.18686797,0.00028767,2]
[381431879,1756194653282,-500.0,0.00028767,2]
[381431880,1756194653291,-1400.0,0.00028767,2]
[381431881,1756194653301,-1200.0,0.00028767,2]
[381431883,1756194653311,-195.94383834,0.00028767,2]
[381431884,1756194653321,-500.0,0.00028767,2]
[381431885,1756194653330,-500.0,0.00028767,2]
[381431886,1756194653340,-1200.0,0.00028767,2]
[381431887,1756194653349,-1400.0,0.00028767,2]
[381431889,1756194653358,-1200.0,0.00028767,2]
[381431890,1756194653367,-500.0,0.00028767,2]
[381431891,1756194653377,-500.0,0.00028767,2]
[381431892,1756194653386,-1601.95492621,0.00028767,2]
[381431894,1756194653395,-1400.0,0.00028767,2]
[381431895,1756194653404,-600.0,0.00028767,2]
[381431896,1756194653414,-500.0,0.00028767,2]
[381431897,1756194653424,-1200.0,0.00028767,2]
[381431898,1756194653433,-1400.0,0.00028767,2]
[381431900,1756194653443,-1400.0,0.00028767,2]
[381431901,1756194653453,-600.0,0.00028767,2]
[381431902,1756194653462,-1200.0,0.00028767,2]
[381431903,1756194653472,-500.0,0.00028767,2]
[381431905,1756194653481,-500.0,0.00028767,2]
[381431906,1756194653490,-1400.0,0.00028767,2]
[381431907,1756194653500,-600.0,0.00028767,2]
[381431908,1756194653511,-1400.0,0.00028767,2]
[381431910,1756194653520,-1200.0,0.00028767,2]
[381431911,1756194653530,-500.0,0.00028767,2]
[381431912,1756194653539,-1400.0,0.00028767,2]
[381431918,1756194653755,-600.0,0.00028767,2]
[381431919,1756194653765,-1400.0,0.00028767,2]
[381431921,1756194653774,-500.0,0.00028767,2]
[381431922,1756194653784,-1200.0,0.00028767,2]
[381431923,1756194653793,-1400.0,0.00028767,2]
[381431924,1756194653803,-600.0,0.00028767,2]
[381431926,1756194653812,-500.0,0.00028767,2]
[381431927,1756194653822,-1200.0,0.00028767,2]
[381431928,1756194653831,-1663.80856344,0.00028767,2]
[381431929,1756194653841,-830.26154299,0.00028767,2]
[381431930,1756194653851,-1400.0,0.00028767,2]
[381431932,1756194653860,-500.0,0.00028767,2]
[381431933,1756194653870,-1200.0,0.00028767,2]
[381431934,1756194653880,-2011.5860444,0.00028767,2]
[381431935,1756194653889,-500.0,0.00028767,2]
[381431937,1756194653899,-1200.0,0.00028767,2]
[381431938,1756194653914,-500.0,0.00028767,2]
[381431939,1756194653923,-1200.0,0.00028767,2]
[381431940,1756194653933,-500.0,0.00028767,2]
[381431942,1756194653942,-1200.0,0.00028767,2]
[381431943,1756194653953,-811.09888064,0.00028767,2]
[381431944,1756194653963,-1800.0,0.00028767,2]
[381431945,1756194653973,-200.0,0.00028767,2]
[381431946,1756194653985,-160.56043128,0.00028767,2]
[381431948,1756194653996,-500.0,0.00028768,2]
[381431949,1756194654006,-500.0,0.00028768,2]
[381431950,1756194654017,-1514.0,0.00028768,2]
[381431951,1756194654026,-500.0,0.00028768,2]
[381431953,1756194654036,-7660.59,0.000288,7]
[381431954,1756194654045,-543.23099146,0.00028833,2]
[381431955,1756194654055,-500.0,0.00028888,2]
[381431956,1756194654064,-190.65596206,0.000289,2]
[381431957,1756194654074,-39050.89,0.000289,2]
[381431959,1756194654083,-946.01872522,0.000289,2]
[381431960,1756194654093,-789.03081075,0.000289,5]
[381431961,1756194654105,-190.5423975,0.000289,2]
[381431962,1756194654114,-304.47403888,0.000289,2]
[381431964,1756194654124,-1317.03,0.00028904,9]
[381431965,1756194654134,-203.0,0.0002896,30]
[381431966,1756194654143,-161.32887874,0.00028961,2]
[381431967,1756194654152,-150.0,0.00028973,5]
[381431969,1756194654162,-152.0,0.00028997,3]
[381431970,1756194654171,-2000.0,0.00028999,2]
[381431971,1756194654181,-115158.80710021,0.00029,2]
[381431972,1756194654194,-611.7271744,0.00029,2]
[381431974,1756194654219,-1003.41372954,0.00029,2]
[381431975,1756194654241,-538.69,0.00029,2]
[381431978,1756194654305,-108.76341582,0.00029,2]
[381432011,1756194655677,-1000.0,0.00021028,2]
[381432012,1756194655688,-14014.8882512,0.00029,2]
[381432014,1756194655707,-671.0272,0.00029,2]
[381432018,1756194655834,-12983.86950048,0.00029,2]
[381432019,1756194655846,-615.3,0.00029,2]
[381432170,1756194662735,-151.0,0.00017679,2]
[381432171,1756194662764,-47.905,0.00018128,2]
[381432248,1756194666388,-102.19,0.00018128,2]
[381432250,1756194666401,-48.81,0.00018128,2]
[381432251,1756194666416,-150.095,0.00018128,2]
[381432312,1756194669408,-500.0,0.00018128,2]
[381432410,1756194674025,-196.095,0.00018128,2]
[381432424,1756194674603,-196.095,0.00018128,2]
[381432425,1756194674618,-107.81,0.00018128,2]
[381432531,1756194680159,-500.0,0.00018128,2]
[381432693,1756194687481,-130.905,0.00018128,2]
[381432694,1756194687504,-238.19,0.00018128,2]
[381432695,1756194687513,-130.905,0.00018327,2]
[381432859,1756194695181,-19.2,0.00018327,2]
[381432861,1756194695210,-150.0,0.00018327,2]
[381432872,1756194695686,-19.2,0.00018585,2]
[381432874,1756194695710,-131.8,0.00018585,2]
[381432875,1756194695719,-18.2,0.00021028,2]
[381432876,1756194695735,-82.02709264,0.00021028,2]
[381433515,1756194778081,-500.0,0.00016438,2]
[381433516,1756194778109,-160.0,0.00017176,7]
[381433517,1756194778136,-150.0,0.00018327,2]
[381433518,1756194778165,-150.0,0.00018327,2]
[381433519,1756194778195,-150.0,0.00018327,2]
[381433520,1756194778225,-150.178,0.00018327,2]
[381433521,1756194778254,-201.932861,0.00019354,2]
[381433522,1756194778283,-600.0,0.00019354,2]
[381433523,1756194778310,-600.0,0.00019354,2]
[381433524,1756194778337,-600.0,0.00019354,2]
[381433525,1756194778365,-600.0,0.00019354,2]
[381433526,1756194778397,-200.0,0.00019354,2]
[381433527,1756194778427,-600.0,0.00019354,2]
[381433528,1756194778460,-600.0,0.00019354,2]
[381433529,1756194778490,-126.38925499,0.00019354,2]
[381433530,1756194778502,-473.61074501,0.00019354,2]
[381433531,1756194778512,-26.38925499,0.00019354,2]
[381433532,1756194778530,-160.0,0.00019354,2]
[381433533,1756194778549,-150.0,0.00019354,2]
[381433534,1756194778563,-55.6425791,0.00019354,2]
[381433535,1756194778572,-94.3574209,0.00019354,2]
[381433536,1756194778583,-150.0,0.00019354,2]
[381433537,1756194778601,-150.178,0.00019354,2]
[381433538,1756194778624,-201.932861,0.00019354,2]
[381433539,1756194778639,-3.5317181,0.00019354,2]
[381433540,1756194778648,-546.9273979,0.00019354,2]
[381433541,1756194778657,-49.540884,0.00019354,2]
[381433542,1756194778679,-101.459116,0.00019354,2]
[381433543,1756194778688,-151.0,0.00019354,2]
[381433544,1756194778697,-151.0,0.00019354,2]
[381433545,1756194778707,-151.0,0.00019354,2]
[381433546,1756194778716,-45.540884,0.00019354,2]
[381433547,1756194778739,-105.459116,0.00019354,2]
[381433548,1756194778749,-151.0,0.00019354,2]
[381433549,1756194778758,-267.46074303,0.00019354,2]
[381433550,1756194778767,-76.08014097,0.00019354,2]
[381433551,1756194778790,-74.91985903,0.00019354,2]
[381433552,1756194778799,-151.0,0.00019354,2]
[381433553,1756194778808,-151.0,0.00019354,2]
[381433554,1756194778817,-151.0,0.00019354,2]
[381433555,1756194778826,-72.08014097,0.00019354,2]
[381433556,1756194778845,-78.91985903,0.00019354,2]
[381433557,1756194778854,-121.08014097,0.00019354,2]
[381433558,1756194778865,-29.91985903,0.00019354,2]
[381433559,1756194778874,-151.0,0.00019354,2]
[381433560,1756194778883,-322.6107,0.00019354,2]
[381433561,1756194778892,-96.46944097,0.00019677,2]
[381433562,1756194778904,-55.53055903,0.00019677,2]
[381433563,1756194778914,-544.46944097,0.00019677,2]
[381433564,1756194778931,-600.0,0.00019677,2]
[381433565,1756194850765,-544.46944097,0.00017176,2]
[381433568,1756194864566,-160.0,0.00017176,2]
[381433569,1756194871553,-150.0,0.00017176,2]
[381433570,1756194893098,-150.0,0.00017176,2]
[381433574,1756194931362,-1.85055903,0.00017176,2]
[381433581,1756194968995,-246.9273979,0.00017175,2]
[381433582,1756194990522,-53.0726021,0.00017175,2]
[381433583,1756195110871,-22.6107,0.00017175,2]
[381433589,1756195253915,-145.52617888,0.00017175,2]
[381433590,1756195260834,-171.6107,0.00017175,2]
[381433599,1756195348407,-150.0,0.00013699,2]
[381433600,1756195443583,-150.095,0.00013699,2]
[381433601,1756195451138,-97.695,0.00013699,2]
[381433602,1756195451169,-150.0,0.00017174,2]
[381433603,1756195451312,-4.61,0.00017175,2]
[381433604,1756195458107,-196.095,0.00017175,2]
[381433605,1756195472605,-500.0,0.00017175,2]
[381433606,1756195479694,-56.03187888,0.00017175,2]
[381433607,1756195479717,-126.12624224,0.00017175,2]
[381433608,1756195486734,-196.095,0.00017175,2]
[381433614,1756195524886,-151.0,0.00017174,2]
[381433615,1756195548422,-160.0,0.00013699,2]
[381433616,1756195555603,-150.0,0.00013699,2]
[381433617,1756195562892,-150.0,0.00013699,2]
[381433618,1756195570219,-40.0,0.00013699,2]
[381433619,1756195570275,-464.46944097,0.00015068,2]
[381433620,1756195599218,-246.9273979,0.00015068,2]
[381433621,1756195629323,-171.6107,0.00015068,2]
[381433622,1756195642516,-196.095,0.00015068,2]
[381433623,1756195651831,-500.0,0.00015068,2]
[381433624,1756195672864,-196.095,0.00015068,2]
[381433625,1756195680334,-150.0,0.00015068,2]
[381433626,1756195687991,-151.0,0.00015068,2]
[381433645,1756195831951,-423.80246113,0.00015068,2]
[381433646,1756195831961,-152.0,0.00016575,2]
[381433647,1756195831971,-174.81503358,0.00016575,2]
[381433648,1756195832083,-2325.18496642,0.00016575,2]
[381433649,1756195832094,-152.0,0.00016575,2]
[381433650,1756195832103,-860.20648198,0.00016614,2]
[381433651,1756195832116,-663.79351802,0.00016614,2]
[381433652,1756195832127,-300.0,0.00017174,2]
[381433653,1756195832136,-1200.0,0.00017174,2]
[381433654,1756195832146,-500.0,0.00017175,2]
[381433655,1756195832156,-500.0,0.00017175,2]
[381433656,1756195832166,-176.04656674,0.00017175,2]
[381433657,1756195832176,-150.0,0.00017175,2]
[381433658,1756195832186,-500.0,0.00017175,2]
[381433659,1756195832197,-500.0,0.00017175,2]
[381433660,1756195832207,-500.0,0.00017175,2]
[381433661,1756195832217,-500.0,0.00017175,2]
[381433662,1756195832227,-500.0,0.00017175,2]
[381433663,1756195832237,-422.42909232,0.00017175,2]
[381433664,1756195832249,-500.0,0.00017175,2]
[381433665,1756195832259,-500.0,0.00017175,2]
[381433666,1756195832269,-560.0,0.00017175,2]
[381433667,1756195832278,-29006.0,0.00017176,2]
[381433668,1756195832289,-197.6,0.00017176,3]
[381433669,1756195832299,-2751.0,0.00017176,2]
[381433670,1756195832309,-500.0,0.00017304,2]
[381433671,1756195832321,-5716.1541971,0.00017497,2]
[381433672,1756195832331,-9999.99,0.00017497,2]
[381433673,1756195832341,-5166.57,0.00017497,2]
[381433674,1756195832351,-9691.67,0.00017497,2]
[381433675,1756195832361,-5974.29,0.00017497,2]
[381433676,1756195832371,-150.99,0.00017497,2]
[381433677,1756195832381,-450.0,0.00017592,2]
[381433678,1756195832391,-405.0,0.0001788,2]
[381433679,1756195832400,-364.5,0.00018169,2]
[381433680,1756195832411,-151.0,0.00018316,2]
[381433681,1756195832421,-500.0,0.00018316,2]
[381433682,1756195832431,-151.0,0.00018316,2]
[381433683,1756195832442,-151.0,0.00018316,2]
[381433684,1756195832451,-151.0,0.00018316,2]
[381433685,1756195832461,-151.0,0.00018316,2]
[381433686,1756195832470,-500.0,0.00018316,2]
[381433687,1756195832480,-151.0,0.00018316,2]
[381433688,1756195832490,-151.0,0.00018316,2]
[381433689,1756195832499,-151.0,0.00018316,2]
[381433690,1756195832508,-151.0,0.00018316,2]
[381433691,1756195832518,-151.0,0.00018316,2]
[381433692,1756195832527,-151.0,0.00018316,2]
[381433693,1756195832537,-151.0,0.00018316,2]
[381433694,1756195832547,-151.0,0.00018316,2]
[381433695,1756195832558,-600.0,0.00018316,2]
[381433696,1756195832569,-600.0,0.00018316,2]
[381433697,1756195832578,-600.0,0.00018316,2]
[381433698,1756195832589,-600.0,0.00018316,2]
[381433699,1756195832599,-600.0,0.00018316,2]
[381433700,1756195832610,-600.0,0.00018316,2]
[381433701,1756195832620,-600.0,0.00018316,2]
[381433702,1756195832629,-600.0,0.00018316,2]
[381433703,1756195832640,-600.0,0.00018316,2]
[381433704,1756195832651,-546.9273979,0.00018316,2]
[381433705,1756195832662,-200.0,0.00018316,2]
[381433706,1756195832673,-152.73,0.00018326,2]
[381433707,1756195832686,-1256.0,0.00018327,2]
[381433708,1756195832696,-2031.0,0.00018327,2]
[381433709,1756195832706,-926.0,0.00018327,2]
[381433710,1756195832717,-3374.0,0.00018327,2]
[381433711,1756195832728,-599.0,0.00018404,2]
[381433712,1756195832737,-566.0,0.00018404,2]
[381433713,1756195832747,-1658.0,0.00018404,2]
[381433714,1756195832757,-1298.0,0.00018404,2]
[381433715,1756195832767,-895.0,0.00018404,2]
[381433716,1756195832777,-1173.0,0.00018404,2]
[381433717,1756195832790,-6146.0,0.00018404,2]
[381433718,1756195832799,-4155.0,0.00018404,2]
[381433719,1756195832809,-718.0,0.00018404,2]
[381433720,1756195832825,-151.0,0.00018412,2]
[381433721,1756195832835,-1006.32,0.00018836,2]
[381433722,1756195832844,-1500.0,0.00019092,2]
[381433723,1756195832854,-594.78982507,0.00019118,2]
[381433724,1756195832865,-200.0,0.00019118,2]
[381433725,1756195832875,-10850.4168703,0.00019119,2]
[381433726,1756195832885,-212.18043798,0.00019174,2]
[381433727,1756195832895,-151.0,0.00019178,2]
[381433728,1756195832906,-2775.08252427,0.00019178,2]
[381433729,1756195832949,-405.0984,0.00019178,2]
[381433730,1756195832976,-461.82193322,0.00019178,2]
[381433731,1756195832988,-1357.99714251,0.00019178,2]
[381433732,1756195832998,-142.00285749,0.00019353,2]
[381433733,1756195833010,-10.08714251,0.00019353,2]
[381433734,1756195833019,-160.0,0.00019449,2]
[381433735,1756195833029,-845.88,0.00019463,2]
[381433736,1756195833039,-526.04,0.00019643,2]
[381433737,1756195833049,-275.11106969,0.00019643,2]
[381433806,1756195838941,-340.0,0.00017174,2]
[381433808,1756195838951,-151.0,0.00018386,2]
[381433810,1756195838960,-200.50635464,0.00018403,2]
[381433812,1756195838969,-181.62019136,0.00018403,2]
[381433814,1756195838978,-224.28834676,0.00018404,2]
[381433816,1756195838990,-13213.9224,0.00018404,2]
[381433905,1756195840097,-7665.78925324,0.00018404,2]
[381433907,1756195840107,-83.52893031,0.00019643,2]
[381433909,1756195840116,-5716.1541971,0.00019711,2]
[381433911,1756195840125,-245.66078866,0.00019726,2]
[381433913,1756195840135,-168.98,0.00019863,2]
[381433915,1756195840144,-212.1,0.0002,2]
[381433917,1756195840154,-308.95,0.0002,2]
[381433919,1756195840163,-6050.0,0.0002,7]
[381433921,1756195840174,-397.79,0.00020187,2]
[381433923,1756195840183,-169.12,0.00020647,2]
[381433925,1756195840192,-157.66978757,0.000209,2]
[381433927,1756195840202,-12447.0,0.000209,2]
[381433929,1756195840212,-555.46486384,0.00020904,2]
[381433931,1756195840221,-319.6,0.00020954,2]
[381433933,1756195840231,-153.02,0.00020954,2]
[381433935,1756195840243,-153.02,0.0002099,2]
[381433937,1756195840254,-844.63891918,0.00020996,2]
[381433939,1756195840264,-11447.77068305,0.00021,2]
[381433941,1756195840273,-200.0,0.00021,7]
[381433942,1756195840283,-160.0,0.00021007,2]
[381433944,1756195840292,-458.7662338,0.00021007,2]
[381433946,1756195840301,-150.0,0.00021013,2]
[381433948,1756195840310,-153.02,0.00021027,2]
[381433950,1756195840321,-16391.6145,0.00021028,2]
[381433951,1756195840330,-1000.0,0.00021028,2]
[381433952,1756195840340,-153.02,0.00021064,2]
[381433953,1756195840349,-153.02,0.000211,2]
[381433954,1756195840360,-419.3985,0.00021227,2]
[381433955,1756195840369,-180.55,0.00021249,2]
[381433956,1756195840378,-150.0,0.00021327,2]
[381433957,1756195840387,-150.0,0.00021327,2]
[381433958,1756195840396,-150.0,0.00021327,2]
[381433959,1756195840406,-150.0,0.00021327,2]
[381433960,1756195840416,-1256.0,0.00021327,2]
[381433961,1756195840425,-2031.0,0.00021327,2]
[381433962,1756195840434,-926.0,0.00021327,2]
[381433963,1756195840444,-3374.0,0.00021327,2]
[381433964,1756195840454,-599.0,0.00021404,2]
[381433965,1756195840464,-566.0,0.00021404,2]
[381433966,1756195840473,-1658.0,0.00021404,2]
[381433967,1756195840483,-1298.0,0.00021404,2]
[381433968,1756195840492,-895.0,0.00021404,2]
[381433969,1756195840501,-1173.0,0.00021404,2]
[381433970,1756195840510,-6146.0,0.00021404,2]
[381433971,1756195840519,-4155.0,0.00021404,2]
[381433972,1756195840528,-718.0,0.00021404,2]
[381433973,1756195840537,-21104.0,0.00021404,2]
[381433974,1756195840546,-5510.0,0.000215,3]
[381433975,1756195840556,-200.0,0.0002151,7]
[381433976,1756195840565,-10850.4168703,0.00021538,2]
[381433977,1756195840574,-1000.0,0.00021551,2]
[381433978,1756195840584,-600.0,0.00021616,2]
[381433979,1756195840593,-200.0,0.0002171,7]
[381433980,1756195840602,-1552.42,0.000219,2]
[381433981,1756195840611,-5000.0,0.00021918,2]
[381433982,1756195840628,-5716.1541971,0.00021925,2]
[381433983,1756195840638,-5510.0,0.00022,5]
[381433984,1756195840648,-319.6,0.00022001,2]
[381433985,1756195840658,-175.58,0.00022068,2]
[381433986,1756195840667,-200.0,0.000221,7]
[381433987,1756195840676,-169.22158607,0.000221,2]
[381433988,1756195840686,-1716.16,0.000221,2]
[381433989,1756195840695,-600.0,0.00022164,2]
[381433990,1756195840705,-2500.0,0.00022183,3]
[381433991,1756195840714,-2500.0,0.00022192,3]
[381433992,1756195840724,-458.7662338,0.000222,3]
[381433993,1756195840733,-2500.0,0.000222,3]
[381433994,1756195840742,-1130.27,0.00022208,2]
[381433995,1756195840752,-2500.0,0.00022209,3]
[381433996,1756195840761,-2500.0,0.00022218,3]
[381433997,1756195840770,-2500.0,0.00022227,3]
[381433998,1756195840779,-2500.0,0.00022236,3]
[381433999,1756195840789,-2500.0,0.00022244,3]
[381434000,1756195840798,-2500.0,0.00022253,3]
[381434001,1756195840807,-2500.0,0.00022262,3]
[381434002,1756195840819,-2500.0,0.00022271,3]
[381434003,1756195840828,-2500.0,0.0002228,3]
[381434004,1756195840838,-2500.0,0.00022288,3]
[381434005,1756195840847,-2500.0,0.00022297,3]
[381434006,1756195840857,-900.0,0.00022301,8]
[381434007,1756195840867,-900.0,0.00022301,8]
[381434008,1756195840877,-900.0,0.00022301,8]
[381434009,1756195840886,-900.0,0.00022301,8]
[381434010,1756195840895,-900.0,0.00022301,8]
[381434011,1756195840908,-900.0,0.00022301,8]
[381434012,1756195840920,-900.0,0.00022301,8]
[381434013,1756195840930,-900.0,0.00022301,8]
[381434014,1756195840941,-925.09465593,0.00022303,2]
[381434015,1756195840951,-2500.0,0.00022306,3]
[381434016,1756195840960,-2500.0,0.00022315,3]
[381434017,1756195840970,-257.91778498,0.0002232,2]
[381434018,1756195840980,-322.6107,0.0002232,2]
[381434019,1756195840990,-670.58624095,0.0002232,2]
[381434020,1756195841000,-1000.0,0.0002232,2]
[381434021,1756195841010,-300.0,0.0002232,2]
[381434022,1756195841022,-2500.0,0.00022324,3]
[381434023,1756195841032,-16013.6474,0.00022331,2]
[381434024,1756195841042,-2500.0,0.00022332,3]
[381434025,1756195841052,-458.7662338,0.00022332,3]
[381434026,1756195841062,-510.0,0.00022337,3]
[381434027,1756195841072,-2500.0,0.00022341,3]
[381434028,1756195841081,-2500.0,0.0002235,3]
[381434029,1756195841091,-2500.0,0.00022359,3]
[381434030,1756195841100,-2500.0,0.00022368,3]
[381434031,1756195841110,-2500.0,0.00022376,3]
[381434032,1756195841119,-150.0,0.00022383,2]
[381434033,1756195841129,-2500.0,0.00022385,3]
[381434034,1756195841139,-2500.0,0.00022394,3]
[381434035,1756195841149,-216.65,0.000224,7]
[381434036,1756195841158,-243.36,0.000224,7]
[381434037,1756195841168,-2500.0,0.00022403,3]
[381434038,1756195841178,-2500.0,0.00022412,3]
[381434039,1756195841189,-2500.0,0.0002242,3]
[381434040,1756195841199,-1936.0,0.00022429,2]
[381434041,1756195841208,-2500.0,0.00022429,3]
[381434042,1756195841218,-2500.0,0.00022438,3]
[381434043,1756195841227,-1473.28958757,0.00022465,3]
[381434044,1756195841239,-200.0,0.0002251,7]
[381434045,1756195841254,-427.0969966,0.00022676,2]
[381434046,1756195841265,-500.0,0.00022676,2]
[381434047,1756195841275,-500.0,0.00022676,2]
[381434048,1756195841285,-500.0,0.00022676,2]
[381434049,1756195841296,-500.0,0.00022676,2]
[381434050,1756195841307,-160.75105234,0.00022676,2]
[381434051,1756195841317,-200.0,0.0002271,7]
[381434052,1756195841327,-162.66701271,0.0002271,2]
[381434053,1756195841338,-600.0,0.00022712,2]
[381434054,1756195841349,-500.0,0.00022763,2]
[381434055,1756195841359,-500.0,0.00022763,2]
[381434056,1756195841370,-500.0,0.00022763,2]
[381434057,1756195841379,-500.0,0.00022763,2]
[381434058,1756195841389,-500.0,0.00022763,2]